[Event "American Cup Women Champions 2023"]
[Site "Saint Louis"]
[Date "2023.03.21"]
[Round "3.1"]
[White "Krush, Irina"]
[Black "Lee, Alice"]
[Result "1/2-1/2"]
[ECO "B10"]
[WhiteElo "2432"]
[BlackElo "2362"]
[Annotator "TA"]
[PlyCount "64"]
[EventDate "2023.03.15"]
[EventType "k.o."]
[EventCountry "USA"]
[SourceTitle "playchess.com"]
[Source "ChessBase"]
[SourceQuality "1"]
[TimeControl "5400+30"]

{[%evp 12,64,46,21,43,20,64,56,65,60,80,46,48,0,0,0,0,0,0,0,0,0,0,0,0,0,9,2,1,0,12,-14,0,0,0,0,0,0,0,0,17,0,0,0,0,0,0,0,0,0,0,0,0,0,0]} 1. c4 {[%emt 0:00:04]} c6 {[%emt 0:00:05]} 2. e4 {[%emt 0:00:18]} d5 {[%emt 0:00:05]} 3. exd5 {[%emt 0:00:09]} cxd5 {[%emt 0:00:07]} 4. cxd5 {[%emt 0:00:08]} Nf6 {[%emt 0:00:47]} 5. Nc3 {[%emt 0:00:16]} g6 {[%emt 0:02:20]} 6. Bc4 {[%emt 0:08:25]} Bg7 {[%emt 0:03:04]} 7. Nge2 {[%emt 0:02:13]} O-O {[%emt 0:05:19] B10: Caro-Kann: 2 d3 and 2 c4.} 8. O-O {[%emt 0:01:07]} Nbd7 {[%emt 0:12:05]} 9. d3 {[%emt 0:00:59]} a6 {[%emt 0:08:19] White is slightly better.} 10. a4 $1 {[%emt 0:01:08]} b6 {[%emt 0:01:19]} 11. h3 {[%emt 0:16:34] White is more active.} Bb7 {[%emt 0:04:31] [#]} 12. d4 $146 {[%emt 0:01:45]} (12. Be3 $14) ({Predecessor:} 12. Be3 Rc8 13. Rc1 Ne8 14. Ne4 Nd6 15. Nxd6 exd6 16. Nd4 Qh4 17. Nc6 Bxb2 18. Rb1 {1-0 Netzer,J (2208)-Saada,J (2304) FRA-ch Accession 2010 (1)}) 12... b5 $11 {[%emt 0:04:43] The position is equal.} 13. axb5 {[%emt 0:01:03]} Nb6 {[%emt 0:01:17][%csl LRc4,LRd5]} 14. Bd3 {[%emt 0:10:33][%cal Rb5a6]} (14. bxa6 $2 {perishes.} Nxc4 15. Qd3 Nd6 $17) 14... axb5 {[%emt 0:01:18]} 15. Rxa8 {[%emt 0:00:07]} Qxa8 {[%emt 0:06:38]} 16. Bxb5 {[%emt 0:00:10]} Nfxd5 {[%emt 0:05:28]} 17. Nxd5 {[%emt 0:06:44]} Bxd5 {[%emt 0:07:32]} 18. Nf4 {[%emt 0:03:48]} Bb7 {[%emt 0:02:51]} 19. Re1 {[%emt 0:09:40]} e6 {[%emt 0:08:16]} 20. Bf1 {[%emt 0:00:14]} Rd8 {[%emt 0:00:31]} 21. Qb3 {[%emt 0:03:37]} Bxd4 {[%emt 0:05:26]} 22. Be3 {[%emt 0:08:45]} Bxe3 {[%emt 0:00:53]} 23. Qxe3 {[%emt 0:00:25]} Nd5 {[%emt 0:04:03]} 24. Nxd5 {[%emt 0:00:03]} Rxd5 {[%emt 0:00:35]} 25. b4 {[%emt 0:01:27]} Bc6 {[%emt 0:00:59]} 26. g3 {[%emt 0:05:42]} Rd7 {[%emt 0:02:57]} 27. b5 {[%emt 0:00:43]} Bb7 {[%emt 0:01:15]} 28. Qe5 {[%emt 0:04:07]} Qa3 {[%emt 0:06:12]} 29. Qb8+ {[%emt 0:07:03]} Kg7 {[%emt 0:00:12] [#] ...Qf3 is the strong threat.} 30. Qe5+ {[%emt 0:00:08]} Kg8 {[%emt 0:00:06] ...Qf3 would be deadly.} 31. Qb8+ {[%emt 0:00:05]} Kg7 {[%emt 0:00:23] And now ...Qf3 would win.} 32. Qe5+ {[%emt 0:00:07]} Kg8 {[%emt 0:01:02] Weighted Error Value: White=0.06 (flawless) /Black=0.05 (flawless)} 1/2-1/2

[Event "American Cup Women Champions 2023"]
[Site "Saint Louis"]
[Date "2023.03.22"]
[Round "3.2"]
[White "Lee, Alice"]
[Black "Krush, Irina"]
[Result "1/2-1/2"]
[ECO "D38"]
[WhiteElo "2362"]
[BlackElo "2432"]
[Annotator "TA"]
[PlyCount "133"]
[EventDate "2023.03.15"]
[EventType "k.o."]
[EventCountry "USA"]
[SourceTitle "playchess.com"]
[Source "ChessBase"]
[SourceQuality "1"]
[TimeControl "5400+30"]

{[%evp 19,133,0,0,0,7,0,0,0,0,0,-8,-9,0,-21,-8,-35,-27,-37,-36,-40,-40,-39,-36,-53,-47,-56,-52,-84,-56,-62,-38,-42,-46,-83,-80,-86,-33,-35,-27,-47,-43,-69,-54,-69,-62,-88,-82,-88,-83,-84,-92,-91,-20,-18,-31,-17,-17,-33,-31,-35,-27,-21,-25,-29,-29,-29,-51,-37,-6,-6,0,0,0,0,0,0,0,0,0,0,0,0,0,0,0,0,0,0,12840,6783,12840,12836,12846,12820,12843,8,4618,0,0,0,0,0,0,0,0,0,0,0,0,0,0,0,0,0,0,0]} 1. d4 {[%emt 0:00:02]} Nf6 {[%emt 0:00:09]} 2. c4 {[%emt 0:00:03]} e6 {[%emt 0:00:11]} 3. Nf3 {[%emt 0:00:17]} d5 {[%emt 0:00:22]} 4. Nc3 {[%emt 0:00:05]} Bb4 {[%emt 0:00:22]} 5. Bg5 {[%emt 0:00:36]} h6 {[%emt 0:00:24]} 6. Bxf6 {[%emt 0:00:05]} Qxf6 {[%emt 0:00:09]} 7. Qa4+ {[%emt 0:00:03]} Nc6 {[%emt 0:00:21]} 8. a3 {[%emt 0:01:56]} Bxc3+ {[%emt 0:00:45]} 9. bxc3 {[%emt 0:00:03]} O-O {[%emt 0:00:22]} 10. e3 {[%emt 0:00:22]} dxc4 {[%emt 0:09:33]} 11. Bxc4 {[%emt 0:03:44] D38: Queen's Gambit Declined: Ragozin Defence (4 Nf3 Bb4).} Bd7 {[%emt 0:00:26][%cal Oc6d4] [#]} 12. O-O $146 {[%emt 0:02:49]} ({Predecessor:} 12. Qc2 Na5 13. Bd3 c5 14. O-O Rac8 15. Qb2 Rfd8 16. Ne5 b6 17. f4 Ba4 18. f5 Qg5 {½-½ Dragun,K (2578)-Nihal,S (2572) Titled Tuesday intern op 5th Nov blitz 2019 (3)}) 12... Rfd8 {[%emt 0:07:57][%cal Oc6d4]} 13. Qc2 {[%emt 0:17:23]} Na5 {[%emt 0:00:32]} 14. Be2 {[%emt 0:01:59]} c5 {[%emt 0:03:11]} 15. Ne5 {[%emt 0:01:55]} Rac8 {[%emt 0:00:40]} 16. Qb2 {[%emt 0:13:55]} Qe7 {[%emt 0:01:45]} 17. f4 {[%emt 0:05:35]} Be8 {[%emt 0:01:30]} 18. Rac1 {[%emt 0:01:58]} f6 {[%emt 0:08:07]} 19. Nc4 {[%emt 0:01:32]} Nxc4 {[%emt 0:05:36]} 20. Bxc4 {[%emt 0:00:03][%cal Oa3a4]} Kh8 {[%emt 0:00:20]} 21. e4 {[%emt 0:15:10]} Bc6 {[%emt 0:13:54]} 22. e5 {[%emt 0:02:52]} f5 {[%emt 0:00:33]} 23. Bb3 {[%emt 0:06:59]} Bd5 {[%emt 0:02:44]} 24. Rcd1 {[%emt 0:08:23]} Bxb3 {[%emt 0:01:33]} 25. Qxb3 {[%emt 0:00:02]} Rd5 {[%emt 0:00:11]} 26. dxc5 {[%emt 0:03:14]} Qxc5+ {[%emt 0:10:07]} 27. Kh1 {[%emt 0:00:02]} Rcd8 {[%emt 0:00:22]} ({Black should try} 27... b6 $17 28. Rxd5 Qxd5 29. Qxd5 exd5) 28. Rxd5 $15 {[%emt 0:08:49]} Qxd5 {[%emt 0:00:02]} 29. Qxd5 {[%emt 0:00:45]} Rxd5 {[%emt 0:00:03][%mdl 4096] Endgame KR-KR} 30. Kg1 {[%emt 0:00:21]} Kg8 {[%emt 0:03:34]} 31. Rb1 {[%emt 0:01:02]} b6 $1 {[%emt 0:00:31]} 32. Rb4 {[%emt 0:00:42]} Rc5 {[%emt 0:02:17] Prevents Rc4.} 33. c4 {[%emt 0:02:06]} g5 {[%emt 0:03:27]} 34. g3 {[%emt 0:00:45]} Kf7 {[%emt 0:00:15]} 35. Kf2 {[%emt 0:00:08]} gxf4 {[%emt 0:02:54]} ({Black should play} 35... Kg6 $17 36. h4 gxh4 37. gxh4 Kh5) 36. gxf4 $11 {[%emt 0:00:02]} Kg6 {[%emt 0:00:08]} 37. Kg3 {[%emt 0:01:54]} Kh5 {[%emt 0:00:03]} 38. a4 {[%emt 0:00:31]} Rc7 {[%emt 0:01:03]} 39. a5 {[%emt 0:00:30]} bxa5 {[%emt 0:00:15]} 40. Ra4 {[%emt 0:00:13]} Rb7 {[%emt 0:06:57]} 41. Rxa5 {[%emt 0:00:24]} Rb3+ {[%emt 0:00:03]} 42. Kf2 {[%emt 0:00:07]} Kg4 {[%emt 0:00:08]} 43. Ra6 {[%emt 0:01:03]} Rb6 {[%emt 0:03:21]} 44. Ra4 {[%emt 0:00:02]} Rb2+ {[%emt 0:05:39]} 45. Ke3 {[%emt 0:00:02]} Rb3+ {[%emt 0:00:06]} 46. Kd4 {[%emt 0:00:28]} Kxf4 {[%emt 0:01:49] ...Rb1 is the strong threat.} 47. c5 {[%emt 0:00:05][%cal Oc5c6] [#] Hoping for c6!} Rb7 {[%emt 0:02:12]} 48. Ra6 {[%emt 0:00:27]} Re7 {[%emt 0:01:21]} 49. Rd6 {[%emt 0:00:22]} (49. c6 $5) 49... a5 {[%emt 0:00:49]} 50. c6 {[%emt 0:01:32] Rd8 would be deadly.} a4 {[%emt 0:00:32]} 51. Rd7 {[%emt 0:00:56]} Re8 {[%emt 0:00:02] And now ...Rc8 would win.} 52. Ra7 {[%emt 0:00:41]} Rc8 {[%emt 0:00:44]} 53. c7 {[%emt 0:00:37]} a3 $2 {[%emt 0:00:20][%mdl 8192] [#]} 54. Kc5 $1 $18 {[%emt 0:00:01] Kd6 would kill now.} Kxe5 {[%emt 0:00:38]} 55. Kc6 {[%emt 0:00:07]} f4 {[%emt 0:01:13]} 56. Rxa3 {[%emt 0:01:07] Intending Kb7 and mate.} Kf5 {[%emt 0:02:59]} 57. Ra5+ $2 {[%emt 0:01:02]} (57. Kb7 $18 Rg8 58. Ra8 (58. c8=B Rg2 $11)) 57... Ke4 $2 {[%emt 0:02:24][%mdl 8192]} (57... e5 $2 58. Kb7 Rg8 59. Ra8 $18 (59. c8=B+ Ke4 $11) (59. c8=R Rxc8 60. Kxc8 f3 $11)) (57... Kg4 $11) 58. Kd6 $2 {[%emt 0:00:36]} ({Better is} 58. Kb7 $18 Rxc7+ 59. Kxc7) 58... f3 $11 {[%emt 0:01:04] Threatens to win with ...f2. The position is equal.} 59. Re5+ {[%emt 0:00:51]} Kd3 {[%emt 0:00:24]} 60. Rxe6 {[%emt 0:00:14]} Rxc7 {[%emt 0:00:34]} 61. Kxc7 {[%emt 0:00:07] KR-KPP} f2 {[%emt 0:00:04]} 62. Rf6 {[%emt 0:00:50]} (62. Rxh6 f1=Q 63. Rd6+ Ke4 64. Re6+ Kd4 $19) 62... Ke2 {[%emt 0:00:06]} 63. Re6+ {[%emt 0:00:11]} (63. Rxh6 f1=Q 64. Kd7 Qf5+ 65. Ke7 Qg5+ 66. Rf6 Ke3 $19) 63... Kd3 {[%emt 0:00:31]} 64. Rf6 {[%emt 0:00:45]} (64. Rxh6 $2 {loses.} f1=Q 65. Kb6 Qf4 $19) 64... Ke2 {[%emt 0:00:13]} 65. Re6+ {[%emt 0:00:12]} (65. Rxh6 $2 f1=Q 66. Kb6 Qb1+ 67. Ka6 Kd3 $19) 65... Kd3 {[%emt 0:00:06]} 66. Rf6 {[%emt 0:00:05]} (66. Rxh6 f1=Q 67. Kb6 Qg1+ 68. Ka6 Qa1+ 69. Kb6 Qb2+ 70. Ka6 Kc4 71. Rc6+ Kd5 $19) 66... Ke2 {[%emt 0:00:05]} 67. Re6+ {[%emt 0:00:19] Black escapes into a draw.   Weighted Error Value: White=0.37/Black=0.08 (flawless)} (67. Rxh6 $2 {too greedy.} f1=Q 68. Kb6 Qf4 $19) 1/2-1/2

[Event "American Cup Women Champions 2023"]
[Site "Saint Louis"]
[Date "2023.03.22"]
[Round "3.3"]
[White "Lee, Alice"]
[Black "Krush, Irina"]
[Result "0-1"]
[ECO "D27"]
[WhiteElo "2362"]
[BlackElo "2432"]
[Annotator "TA"]
[PlyCount "144"]
[EventDate "2023.03.15"]
[EventType "k.o."]
[EventCountry "USA"]
[SourceTitle "playchess.com"]
[Source "ChessBase"]
[SourceQuality "1"]
[TimeControl "600+5"]

{[%evp 23,144,56,54,39,61,-5,-3,-4,-6,-21,-4,-49,0,-33,0,-36,-41,-40,-46,-39,0,0,13,9,15,12,20,-13,7,10,8,13,19,17,73,52,62,62,65,68,61,8,8,5,8,0,0,0,8,7,8,0,30,0,0,0,0,0,6,0,0,0,0,-8,-8,-8,-8,-266,-259,-618,-618,-569,-516,-644,-632,-605,-488,-599,-466,-466,-442,-427,-416,-387,-314,-308,-279,-307,-306,-286,-279,-639,-638,-762,-759,-710,-412,-590,-538,-1064,-904,-1213,-1198,-1254,-1324,-1186,-1186,-1952,-1758,-1996,-1610,-1613,-1579,-29980,-29980,-29982,-2278,-29991,-29992,-29994,-29995,-29997,-29998]} 1. d4 {[%emt 0:00:01]} d5 {[%emt 0:00:01]} 2. c4 {[%emt 0:00:01]} dxc4 {[%emt 0:00:01]} 3. Nf3 {[%emt 0:00:01]} Nf6 {[%emt 0:00:02]} 4. e3 {[%emt 0:00:01]} e6 {[%emt 0:00:01]} 5. Bxc4 {[%emt 0:00:02]} c5 {[%emt 0:00:02]} 6. O-O {[%emt 0:00:02]} Nc6 {[%emt 0:00:01]} 7. dxc5 {[%emt 0:00:05]} Qxd1 {[%emt 0:00:12]} 8. Rxd1 {[%emt 0:00:02]} Bxc5 {[%emt 0:00:01]} 9. a3 {[%emt 0:00:01]} a6 {[%emt 0:00:28]} 10. b4 {[%emt 0:00:06]} Ba7 {[%emt 0:00:26]} 11. Bb2 {[%emt 0:00:09]} Ke7 {[%emt 0:00:10]} 12. Nbd2 {[%emt 0:00:08][%cal Bb1d2,Bd2b3,Bb3c5][%mdl 32]} Bd7 {[%emt 0:00:05][%cal Bc8d7,Bd7a4,Ba4c6][%mdl 32]} 13. Nb3 {[%emt 0:00:15] [#] D27: Queen's Gambit Accepted: Classical main line: 7 e4!? and 7 a4.} (13. Rab1 {simplifies} Rhc8 14. Bd3 Be8 15. Ne4) 13... Rhd8 $146 {[%emt 0:00:31]} ({Predecessor:} 13... Rhc8 14. Bf1 Nd8 15. a4 Bc6 16. b5 axb5 17. axb5 Bd5 18. Nbd2 Bc5 19. Ne5 b6 20. Nd3 Bd6 21. Bd4 Rxa1 22. Rxa1 Rc2 23. Nf3 Nd7 24. Nfe1 {½-½ Nielsen,P (2515)-Hansen,S (2499) DEN-ch Aarhus 1999 (6)}) 14. Ne5 {[%emt 0:00:38]} (14. Rdc1 $14) 14... Nxe5 $11 {[%emt 0:01:49]} 15. Bxe5 {[%emt 0:00:01] The position is equal.} Ba4 {[%emt 0:00:02]} 16. Rdb1 {[%emt 0:00:11]} Rac8 {[%emt 0:00:28]} (16... Ne4 $5 {[%cal Rf7f6]}) 17. Bf1 {[%emt 0:00:17]} Rc2 {[%emt 0:01:36]} (17... Ne4 $15) 18. Nc5 {[%emt 0:00:22]} Bc6 {[%emt 0:00:12]} (18... Ng4 $5 {[%cal Ra7c5]} 19. Bg3 (19. Bxg7 Rg8 $15) 19... Bc6 $11) 19. Rc1 {[%emt 0:00:22]} Rxc1 {[%emt 0:01:11]} 20. Rxc1 {[%emt 0:00:01]} Bxc5 $1 {[%emt 0:00:14]} 21. bxc5 {[%emt 0:00:18]} Ne8 {[%emt 0:00:08]} 22. f3 {[%emt 0:00:32]} f6 {[%emt 0:00:04]} 23. Bc3 {[%emt 0:00:04]} Nc7 {[%emt 0:00:17]} 24. Ba5 {[%emt 0:00:15]} Rd7 {[%emt 0:00:01]} 25. e4 {[%emt 0:00:01]} Bb5 {[%emt 0:00:15]} 26. Bxb5 {[%emt 0:00:18]} Nxb5 {[%emt 0:00:05][%mdl 4096] Endgame KRB-KRN} 27. c6 {[%emt 0:00:07]} bxc6 {[%emt 0:00:33]} 28. Rxc6 {[%emt 0:00:18]} Ra7 {[%emt 0:00:47]} (28... Rd6 $11 29. Rc8 (29. Bb4 Kd7 $11) 29... Kf7) 29. a4 {[%emt 0:00:25]} Nd4 {[%emt 0:00:11]} 30. Bb4+ {[%emt 0:00:38]} Kf7 {[%emt 0:00:14]} 31. Rd6 {[%emt 0:00:24]} Nc2 {[%emt 0:00:51]} 32. Bc5 {[%emt 0:00:25]} (32. Ba5 $14) 32... Rc7 {[%emt 0:00:08]} 33. Bb6 {[%emt 0:01:20]} Rc4 {[%emt 0:00:01]} 34. Rd7+ {[%emt 0:00:09]} Kg6 {[%emt 0:00:05]} 35. a5 {[%emt 0:00:07]} e5 {[%emt 0:00:05]} 36. Ra7 {[%emt 0:00:42]} Nb4 {[%emt 0:00:02]} 37. h4 {[%emt 0:00:11][%cal Oh4h5]} h5 {[%emt 0:00:01]} 38. Bc7 {[%emt 0:00:19] Hoping for Bd6.} Rc1+ {[%emt 0:01:08]} 39. Kh2 {[%emt 0:00:08]} Rc6 {[%emt 0:00:20] Against Bd6} 40. Bd8 {[%emt 0:00:27]} Rc8 {[%emt 0:00:01]} 41. Bb6 {[%emt 0:00:15]} Rc2 {[%emt 0:00:06]} 42. Kh3 {[%emt 0:00:21]} Nd3 {[%emt 0:00:08]} 43. Rxa6 {[%emt 0:00:37]} Nf4+ {[%emt 0:00:01]} 44. Kh2 {[%emt 0:00:01]} Nxg2 {[%emt 0:00:16]} 45. Ra8 $2 {[%emt 0:01:17][%mdl 8192] Now White is beyond hope.} (45. Kg3 $11) 45... Nxh4+ $19 {[%emt 0:00:19]} 46. Kg1 $2 {[%emt 0:00:19]} (46. Kg3 Ng2 47. a6) 46... Nxf3+ {[%emt 0:00:02]} 47. Kf1 {[%emt 0:00:00]} Nd2+ {[%emt 0:00:10]} 48. Ke1 {[%emt 0:00:05]} Nxe4 {[%emt 0:00:05]} 49. a6 {[%emt 0:00:06]} Nd6 {[%emt 0:00:06]} 50. Bf2 {[%emt 0:00:33]} Nb5 {[%emt 0:00:04]} 51. Rb8 {[%emt 0:00:06] [#]} Ra2 $1 {[%emt 0:00:02]} 52. Rxb5 {[%emt 0:00:17] And now a7 would win.} Rxa6 {[%emt 0:00:03] KRB-KR} 53. Rb7 {[%emt 0:00:02]} Ra4 {[%emt 0:00:08]} 54. Ke2 {[%emt 0:00:12]} Rg4 {[%emt 0:00:02]} 55. Bc5 {[%emt 0:00:19]} Kf5 {[%emt 0:00:11]} 56. Bf8 {[%emt 0:00:05]} g5 {[%emt 0:00:05]} 57. Rb6 $2 {[%emt 0:00:10]} (57. Rh7 h4 58. Rh6) 57... Rf4 {[%emt 0:00:01]} 58. Be7 {[%emt 0:00:05]} Kg6 {[%emt 0:00:05]} 59. Bd6 {[%emt 0:00:02]} Rf5 {[%emt 0:00:06]} 60. Rb7 {[%emt 0:00:11]} (60. Rb8 $142 h4 61. Bc5) 60... g4 {[%emt 0:00:06] [#] Strongly threatening ...h4.} 61. Bc5 {[%emt 0:00:05]} h4 {[%emt 0:00:08][%cal Bh5h4,Bh4h3][%mdl 32]} 62. Bf8 {[%emt 0:00:05]} Rf4 {[%emt 0:00:04]} 63. Rg7+ {[%emt 0:00:04]} Kf5 {[%emt 0:00:02]} 64. Rh7 {[%emt 0:00:02]} h3 {[%emt 0:00:01]} 65. Rh5+ {[%emt 0:00:04]} Ke4 {[%emt 0:00:01]} 66. Bc5 {[%emt 0:00:07]} f5 {[%emt 0:00:04]} 67. Rh8 {[%emt 0:00:08]} Rf3 {[%emt 0:00:02]} 68. Bd6 {[%emt 0:00:06]} Rb3 {[%emt 0:00:09]} 69. Re8 {[%emt 0:00:05]} Rb2+ {[%emt 0:00:07]} (69... h2 $142 70. Bxe5 h1=Q 71. Bc3+ Kd5 72. Rd8+ Ke6 73. Rc8 Kd7 74. Rc4 g3 75. Rd4+ Ke6 76. Rc4 Qg2+ 77. Ke3 Qf2+ 78. Kd3 Qf1+ 79. Kd4 Qf3 80. Rc6+ Qxc6 81. Ke3 Qxc3+ 82. Ke2 Qd3+ 83. Ke1 Rb1#) 70. Kf1 {[%emt 0:00:05]} h2 {[%emt 0:00:11][%cal Rh2h1] Black mates.} 71. Rh8 {[%emt 0:00:04]} g3 {[%emt 0:00:05][%cal Bg4g3,Bg3g2][%mdl 32]} 72. Bc5 {[%emt 0:00:04]} g2+ {[%emt 0:00:04] Weighted Error Value: White=0.53/Black=0.19 (very precise)} 0-1

[Event "American Cup Women Champions 2023"]
[Site "Saint Louis"]
[Date "2023.03.22"]
[Round "3.4"]
[White "Krush, Irina"]
[Black "Lee, Alice"]
[Result "1-0"]
[ECO "D35"]
[WhiteElo "2432"]
[BlackElo "2362"]
[Annotator "TA"]
[PlyCount "81"]
[EventDate "2023.03.15"]
[EventType "k.o."]
[EventCountry "USA"]
[SourceTitle "playchess.com"]
[Source "ChessBase"]
[SourceQuality "1"]
[TimeControl "600+5"]

{[%evp 9,81,23,16,19,26,21,26,8,18,20,55,17,20,23,51,-20,53,0,0,0,35,28,25,23,80,54,64,73,577,116,455,79,136,57,535,379,380,68,868,850,842,836,823,386,412,343,398,316,316,319,1211,1186,1172,1059,931,782,2324,2733,5297,5297,5297,5297,5281,3706,5547,3527,29988,29989,29989,29989,29989,29990,29990,29991]} 1. d4 {[%emt 0:06:07]} d5 {[%emt 0:07:04]} 2. c4 {[%emt 0:00:05]} e6 {[%emt 0:00:05]} 3. Nc3 {[%emt 0:00:05]} Be7 {[%emt 0:00:05]} 4. cxd5 {[%emt 0:00:05]} exd5 {[%emt 0:00:05]} 5. Bf4 {[%emt 0:00:05]} Nf6 {[%emt 0:00:05]} 6. e3 {[%emt 0:00:05] D35: Queen's Gambit Declined: Exchange Variation.} Bd6 {[%emt 0:00:05] 6...Bf5 gains popularity.} 7. Qf3 {[%emt 0:00:05]} c6 {[%emt 0:00:05]} 8. Bd3 {[%emt 0:00:05] [#] White has an edge.} O-O $146 {[%emt 0:00:05]} (8... Bg4 $5 {[%cal Rg4f3]} 9. Qg3 Bxf4 10. Qxf4 O-O $11) ({Predecessor:} 8... Bg4 9. Qg3 Bxf4 10. Qxf4 Nbd7 11. Nf3 Bh5 12. Nh4 Bg6 13. Nxg6 hxg6 14. h4 Qb8 {1-0 Peng,L (2501)-Akesson,R (2427) Uppsala 08 2022 (2)}) 9. h3 {[%emt 0:00:05]} Na6 {[%emt 0:00:05][%cal Od8b6,Bb8a6,Ba6c7,Bc7e6][%mdl 32]} 10. Nge2 {[%emt 0:00:05]} Nc7 {[%emt 0:00:05]} 11. g4 {[%emt 0:00:05]} Ne6 {[%emt 0:00:05]} 12. O-O-O {[%emt 0:00:05]} (12. Bxd6 $14 Qxd6 13. h4) 12... b5 {[%emt 0:00:05]} (12... Nxf4 $11 13. Nxf4 Bb4) 13. g5 {[%emt 0:00:05]} (13. Bxd6 $14 Qxd6 14. Ng3) 13... Ne8 $1 $11 {[%emt 0:00:05]} 14. h4 {[%emt 0:00:05]} (14. Qh5 g6 15. Qh4 Nxf4 16. Nxf4 Ng7 $17) 14... b4 {[%emt 0:00:05] White must now prevent ...Nxf4.} 15. Na4 {[%emt 0:00:05]} (15. Qh5 $2 g6 16. Qh6 bxc3 $19) 15... Qa5 {[%emt 0:00:05]} 16. b3 {[%emt 0:00:05]} Bd7 {[%emt 0:00:05]} (16... Ba6 $1 $11 {keeps the balance.}) 17. Kb1 $40 {[%emt 0:00:05][%mdl 128] White attacks. White is more active.} Nxf4 {[%emt 0:00:05]} 18. Nxf4 {[%emt 0:00:05]} Nc7 $2 {[%emt 0:00:05][%mdl 8192]} (18... Qc7 $16 {keeps fishing.}) 19. Rc1 $2 {[%emt 0:00:05]} (19. Nh5 $18 {and the rest is easy.}) 19... Nb5 $2 {[%emt 0:00:05][%mdl 8192]} (19... Ne8 $16) 20. Ne2 $2 {[%emt 0:00:05]} (20. Qh5 g6 21. Qh6 Bxf4 $18) (20. Nh5 $18 {has better winning chances.} f5 21. gxf6) 20... Rab8 {[%emt 0:00:03]} ({Better is} 20... Na3+ 21. Ka1 f5) 21. h5 (21. Qh5 g6 22. Qf3 Nc3+ 23. Naxc3 (23. Nexc3 bxc3 24. Nxc3 Qa3 $14) 23... bxc3 $14) (21. Nc5 $16 Bc8 22. Rhg1 (22. Qh5 g6 $14)) 21... Nc3+ $2 {[%emt 0:00:07][%mdl 8192]} 22. Naxc3 {[%emt 0:00:25]} bxc3 {[%emt 0:00:01]} 23. Rxc3 $2 {[%emt 0:00:07]} ({White must play} 23. h6 $18 f5 24. hxg7 (24. Rxc3 g6 $11)) 23... Bb4 $2 {[%emt 0:00:39][%mdl 8192] [#]} (23... f5 $14) 24. h6 $1 $18 {[%emt 0:00:32]} f5 {[%emt 0:00:39]} 25. hxg7 {[%emt 0:01:11][%cal Of3h5] Qh5! would kill now.} Rf7 {[%emt 0:00:21]} 26. Rc2 {[%emt 0:00:21]} (26. g6 $142 hxg6 27. Rh8+ {[%mdl 64] Skewer} Kxg7 28. Rxb8) 26... Rxg7 {[%emt 0:00:29]} 27. Ng3 {[%emt 0:00:31][%cal Be2g3,Bg3h5,Bh5f6][%mdl 32] aiming for Nh5.} (27. Bxf5 Rf8 28. Ng3 Qd8 29. Rxh7 Qxg5 $18) 27... Bc3 {[%emt 0:00:09][%cal Ob8b3] [#] And now ...Rxb3+! would win.} 28. Rxc3 {[%emt 0:00:32][%mdl 512]} Qxc3 {[%emt 0:00:02] [#]} 29. Bc2 {[%emt 0:00:00]} (29. Bxf5 $2 Rf8 30. Qe2 Bxf5+ $19) 29... Rf7 $2 {[%emt 0:01:16]} (29... Rxg5 $2 30. Qf4 $18 (30. Bxf5 $2 Bxf5+ {[%mdl 64] Remove Defender} 31. Nxf5 Qd3+ 32. Kc1 Qxf5 $19) (30. Bxf5 $2 Bxf5+ {[%mdl 64] Remove Defender} 31. Nxf5 Qd3+ 32. Kc1 Qxf5 $19)) (29... Qb4 30. Nh5 (30. Nxf5 Bxf5 31. Qxf5 Qe7 $16) (30. Bxf5 Rf8 $11) 30... Qe7 31. Nxg7 (31. Bxf5 Bxf5+ 32. Qxf5 Rf7 $18) 31... Qxg7 32. Bxf5 Bxf5+ 33. Qxf5 Qg6 34. Qxg6+ hxg6) 30. Nh5 {[%emt 0:00:08]} Kf8 {[%emt 0:00:05]} 31. Nf6 {[%emt 0:00:04]} Ke7 {[%emt 0:00:04]} 32. Qf4 {[%emt 0:00:20]} Rb7 {[%emt 0:00:09]} 33. Qe5+ {[%emt 0:00:11]} Kd8 {[%emt 0:00:02]} 34. g6 {[%emt 0:00:26]} (34. Bxf5 Bxf5+ 35. Qxf5 Rxb3+ 36. axb3 Qxb3+ 37. Kc1 Rb7 38. Rxh7 (38. Nxh7 $2 Qb2+ 39. Kd1 Qa1+ {[%mdl 64] Skewer} 40. Ke2 Rb2+ 41. Kf3 Qxh1+ 42. Kg4 Qg1+ 43. Kh5 Rxf2 $19) 38... Qc4+ 39. Qc2 (39. Kd1 Qf1+ 40. Kd2 Rb2+ {[%mdl 64] Skewer}) 39... Qf1+ 40. Kd2 Qxf2+ 41. Kd3 Qf1+ 42. Kd2 Qf2+ 43. Kd3 Qf1+ 44. Kd2 Qf2+ $11) 34... Re7 {[%emt 0:00:09]} 35. gxh7 {[%emt 0:00:22]} Rxe5 {[%emt 0:00:02]} 36. dxe5 {[%emt 0:00:06]} (36. h8=R+ $2 Re8 37. Nxe8 Bxe8 $19) 36... Kc7 {[%emt 0:00:07]} 37. h8=Q {[%emt 0:00:02] White wants to mate with Nxd7.} (37. h8=B $2 {is the wrong capture.} Qd2 38. Nxd7 Kxd7 $19) 37... a5 {[%emt 0:00:02]} 38. Nxd7 {[%emt 0:00:05] White mates.} a4 {[%emt 0:00:02]} 39. Qg7 {[%emt 0:00:04]} ({And not} 39. Bxf5 axb3 40. a3 Qd2 $11) 39... a3 {[%emt 0:00:09]} 40. Nc5+ {[%emt 0:00:04]} (40. Bxf5 $2 Qb2#) 40... Kb6 {[%emt 0:00:05]} 41. Na4+ {[%emt 0:00:03] Weighted Error Value: White=1.03/Black=0.89} (41. Nxb7 $2 Qb2#) 1-0